[Event "Live Chess"]
[Site "Chess.com"]
[Date "2023.05.21"]
[Round "-"]
[White "EdenHazard8"]
[Black "JoeRoot66"]
[Result "0-1"]
[WhiteElo "1947"]
[BlackElo "1918"]
[TimeControl "300"]
[EndTime "3:42:11 PDT"]
[Termination "JoeRoot66 won by resignation"]

1. e4 {[%clk 0:04:57.7]} 1... c6 {[%clk 0:04:59]} 2. d4 {[%clk 0:04:56.7]} 2...
d5 {[%clk 0:04:58.9]} 3. e5 {[%clk 0:04:56.3]} 3... Bf5 {[%clk 0:04:57.3]} 4. h4
{[%clk 0:04:55.9]} 4... h5 {[%clk 0:04:55]} 5. Bd3 {[%clk 0:04:54.5]} 5... Bxd3
{[%clk 0:04:53]} 6. Qxd3 {[%clk 0:04:54.4]} 6... e6 {[%clk 0:04:52.1]} 7. Nf3
{[%clk 0:04:53.3]} 7... Qa5+ {[%clk 0:04:51.4]} 8. c3 {[%clk 0:04:51.7]} 8...
Qa6 {[%clk 0:04:51]} 9. Qxa6 {[%clk 0:04:48.8]} 9... Nxa6 {[%clk 0:04:50.9]} 10.
Bg5 {[%clk 0:04:47.5]} 10... Nc7 {[%clk 0:04:43.4]} 11. Nbd2 {[%clk 0:04:46]}
11... c5 {[%clk 0:04:41.2]} 12. Ke2 {[%clk 0:04:45]} 12... cxd4 {[%clk
0:04:34.6]} 13. cxd4 {[%clk 0:04:43.6]} 13... Ne7 {[%clk 0:04:33.4]} 14. Rhc1
{[%clk 0:04:41.6]} 14... Rc8 {[%clk 0:04:31.4]} 15. Rc3 {[%clk 0:04:38.7]} 15...
Nc6 {[%clk 0:04:28.6]} 16. Rac1 {[%clk 0:04:35.2]} 16... Be7 {[%clk 0:04:26.7]}
17. Bxe7 {[%clk 0:04:32.2]} 17... Kxe7 {[%clk 0:04:26.6]} 18. b4 {[%clk
0:04:31.7]} 18... Nb5 {[%clk 0:04:18]} 19. Rc5 {[%clk 0:04:18.4]} 19... Nbxd4+
{[%clk 0:04:11.6]} 20. Ke3 {[%clk 0:04:06.5]} 20... Nxf3 {[%clk 0:04:00.3]} 21.
Nxf3 {[%clk 0:04:06.4]} 21... Kd7 {[%clk 0:03:33.8]} 22. Ng5 {[%clk 0:03:54.4]}
22... Nxe5 {[%clk 0:03:18.1]} 23. Kd4 {[%clk 0:03:45.7]} 23... Rxc5 {[%clk
0:02:53.8]} 24. Rxc5 {[%clk 0:03:38.2]} 24... f6 {[%clk 0:02:50.1]} 25. g3
{[%clk 0:03:33.6]} 25... Nc6+ {[%clk 0:02:45.5]} 0-1

[Event "Live Chess"]
[Site "Chess.com"]
[Date "2023.05.21"]
[Round "-"]
[White "ameetghasi100"]
[Black "lateforthesky"]
[Result "1-0"]
[WhiteElo "2617"]
[BlackElo "2119"]
[TimeControl "300"]
[EndTime "3:42:17 PDT"]
[Termination "ameetghasi100 won by resignation"]

1. d4 {[%clk 0:04:57.9]} 1... Nf6 {[%clk 0:04:54.5]} 2. c4 {[%clk 0:04:57.8]}
2... g6 {[%clk 0:04:53.1]} 3. Nf3 {[%clk 0:04:57.7]} 3... Bg7 {[%clk 0:04:52.2]}
4. g3 {[%clk 0:04:57.3]} 4... d6 {[%clk 0:04:50.8]} 5. Bg2 {[%clk 0:04:57.2]}
5... O-O {[%clk 0:04:49.8]} 6. O-O {[%clk 0:04:57.1]} 6... Nbd7 {[%clk
0:04:48.5]} 7. Nc3 {[%clk 0:04:57]} 7... e5 {[%clk 0:04:45.8]} 8. Bg5 {[%clk
0:04:56.5]} 8... h6 {[%clk 0:04:43.7]} 9. Bxf6 {[%clk 0:04:55.2]} 9... Bxf6
{[%clk 0:04:41.7]} 10. e3 {[%clk 0:04:53.9]} 10... exd4 {[%clk 0:04:38.9]} 11.
Nxd4 {[%clk 0:04:50.9]} 11... Ne5 {[%clk 0:04:30.2]} 12. b3 {[%clk 0:04:46.8]}
12... a6 {[%clk 0:04:25.4]} 13. h3 {[%clk 0:04:44.6]} 13... Rb8 {[%clk
0:04:22.9]} 14. Rc1 {[%clk 0:04:38.4]} 14... Bd7 {[%clk 0:04:21.3]} 15. Nd5
{[%clk 0:04:34.8]} 15... Bg7 {[%clk 0:04:17.7]} 16. Ne2 {[%clk 0:04:30.8]} 16...
c6 {[%clk 0:04:09.7]} 17. Ndc3 {[%clk 0:04:29.3]} 17... Qe7 {[%clk 0:04:08.2]}
18. f4 {[%clk 0:04:22.5]} 18... Nxc4 {[%clk 0:03:58.7]} 19. bxc4 {[%clk
0:04:20.4]} 19... Qxe3+ {[%clk 0:03:57.6]} 20. Kh2 {[%clk 0:04:19.5]} 20... Rbe8
{[%clk 0:03:46]} 21. Qxd6 {[%clk 0:04:16.9]} 21... Bf5 {[%clk 0:03:38.7]} 22. g4
{[%clk 0:04:11.3]} 22... Rd8 {[%clk 0:03:36.2]} 23. Qc7 {[%clk 0:04:03.5]} 23...
Bd3 {[%clk 0:03:34.6]} 24. Rf3 {[%clk 0:04:01.2]} 24... Qc5 {[%clk 0:03:24.1]}
25. Ng3 {[%clk 0:03:51.3]} 25... Qd4 {[%clk 0:03:08.8]} 26. Qxb7 {[%clk
0:03:44.8]} 26... Qxc4 {[%clk 0:03:00]} 27. Qb3 {[%clk 0:03:24.7]} 27... Qxb3
{[%clk 0:02:49.7]} 28. axb3 {[%clk 0:03:24.6]} 28... c5 {[%clk 0:02:43.8]} 29.
Na4 {[%clk 0:03:23.3]} 29... c4 {[%clk 0:02:30.3]} 30. bxc4 {[%clk 0:03:21.5]}
30... Rfe8 {[%clk 0:02:28.5]} 31. c5 {[%clk 0:03:16.4]} 31... Bb5 {[%clk
0:02:21.2]} 32. Nb6 {[%clk 0:03:14.4]} 32... Rd2 {[%clk 0:02:19.2]} 33. c6
{[%clk 0:03:08.5]} 33... Bb2 {[%clk 0:02:18.6]} 34. Rc5 {[%clk 0:03:01.7]} 34...
Ba3 {[%clk 0:02:04.4]} 35. Rxb5 {[%clk 0:02:59.9]} 35... axb5 {[%clk 0:02:02.6]}
36. c7 {[%clk 0:02:59.8]} 36... Rc2 {[%clk 0:02:00.5]} 37. c8=Q {[%clk
0:02:57.4]} 37... Rexc8 {[%clk 0:01:57.8]} 38. Nxc8 {[%clk 0:02:57.3]} 38...
Rxc8 {[%clk 0:01:56.3]} 39. Rxa3 {[%clk 0:02:56.3]} 1-0

[Event "Live Chess"]
[Site "Chess.com"]
[Date "2023.05.21"]
[Round "-"]
[White "AttackingSnowLeopard"]
[Black "domrobson"]
[Result "1-0"]
[WhiteElo "2168"]
[BlackElo "1715"]
[TimeControl "300"]
[EndTime "3:42:23 PDT"]
[Termination "AttackingSnowLeopard won by resignation"]

1. d4 {[%clk 0:04:57.5]} 1... e6 {[%clk 0:04:59.2]} 2. c4 {[%clk 0:04:56.6]}
2... Nf6 {[%clk 0:04:58.3]} 3. Nf3 {[%clk 0:04:55.8]} 3... d5 {[%clk 0:04:57.2]}
4. Nc3 {[%clk 0:04:54.6]} 4... c6 {[%clk 0:04:56.6]} 5. e3 {[%clk 0:04:53.3]}
5... Nbd7 {[%clk 0:04:55.9]} 6. Qc2 {[%clk 0:04:52.9]} 6... Bd6 {[%clk 0:04:54]}
7. Be2 {[%clk 0:04:50.4]} 7... O-O {[%clk 0:04:48.7]} 8. b3 {[%clk 0:04:49.6]}
8... e5 {[%clk 0:04:46.1]} 9. cxd5 {[%clk 0:04:44.8]} 9... cxd5 {[%clk
0:04:40.7]} 10. dxe5 {[%clk 0:04:44]} 10... Nxe5 {[%clk 0:04:39.4]} 11. Bb2
{[%clk 0:04:43.5]} 11... Nxf3+ {[%clk 0:04:38.3]} 12. Bxf3 {[%clk 0:04:40.8]}
12... Be6 {[%clk 0:04:37.1]} 13. O-O {[%clk 0:04:37.5]} 13... Rc8 {[%clk
0:04:35.6]} 14. Qd3 {[%clk 0:04:33.7]} 14... Qd7 {[%clk 0:04:19.1]} 15. Nb5
{[%clk 0:04:26.8]} 15... Qd8 {[%clk 0:04:06.1]} 16. Nxd6 {[%clk 0:04:21.2]}
16... Qxd6 {[%clk 0:04:04.7]} 17. Bxf6 {[%clk 0:04:20.4]} 17... gxf6 {[%clk
0:04:04.3]} 18. Qd4 {[%clk 0:04:19.7]} 18... Qe5 {[%clk 0:04:03]} 19. Qxa7
{[%clk 0:04:17.8]} 19... Rc7 {[%clk 0:03:58.8]} 20. Qb6 {[%clk 0:04:08.9]} 20...
Rfc8 {[%clk 0:03:57.1]} 21. a4 {[%clk 0:04:06.4]} 21... Bd7 {[%clk 0:03:38.3]}
22. a5 {[%clk 0:04:01.7]} 22... Bc6 {[%clk 0:03:37]} 23. Rfd1 {[%clk 0:03:55.8]}
1-0

[Event "Live Chess"]
[Site "Chess.com"]
[Date "2023.05.21"]
[Round "-"]
[White "Vitalii18a"]
[Black "JohanKjeldahl"]
[Result "0-1"]
[WhiteElo "1115"]
[BlackElo "1886"]
[TimeControl "300"]
[EndTime "3:42:28 PDT"]
[Termination "JohanKjeldahl won by resignation"]

1. e4 {[%clk 0:04:58.4]} 1... c5 {[%clk 0:04:57.9]} 2. Nf3 {[%clk 0:04:56.2]}
2... Nc6 {[%clk 0:04:56.7]} 3. c3 {[%clk 0:04:55.2]} 3... Nf6 {[%clk 0:04:51.5]}
4. Bd3 {[%clk 0:04:54.1]} 4... e6 {[%clk 0:04:48.5]} 5. Bc2 {[%clk 0:04:53]}
5... a6 {[%clk 0:04:45.3]} 6. O-O {[%clk 0:04:52]} 6... d5 {[%clk 0:04:42.9]} 7.
e5 {[%clk 0:04:49.2]} 7... Nd7 {[%clk 0:04:40.4]} 8. Re1 {[%clk 0:04:47.5]} 8...
Be7 {[%clk 0:04:39]} 9. d4 {[%clk 0:04:46.4]} 9... cxd4 {[%clk 0:04:37.1]} 10.
cxd4 {[%clk 0:04:45.2]} 10... Nb4 {[%clk 0:04:26.9]} 11. Ba4 {[%clk 0:04:35.7]}
11... b5 {[%clk 0:04:24.7]} 12. Bb3 {[%clk 0:04:34.4]} 12... Bb7 {[%clk
0:04:21.4]} 13. Bd2 {[%clk 0:04:24.3]} 13... Nc6 {[%clk 0:04:19.8]} 14. a4
{[%clk 0:04:16.5]} 14... O-O {[%clk 0:04:17.5]} 15. axb5 {[%clk 0:04:15.1]}
15... axb5 {[%clk 0:04:16.5]} 16. Rxa8 {[%clk 0:04:13.6]} 16... Qxa8 {[%clk
0:04:15.2]} 17. Nc3 {[%clk 0:04:01.2]} 17... b4 {[%clk 0:04:12.4]} 18. Nb5
{[%clk 0:03:51.8]} 18... Nb6 {[%clk 0:03:59.5]} 19. Bg5 {[%clk 0:03:44.3]} 19...
h6 {[%clk 0:03:47.4]} 20. Bxe7 {[%clk 0:03:37.9]} 20... Nxe7 {[%clk 0:03:46.3]}
21. h3 {[%clk 0:03:25.6]} 21... Nc4 {[%clk 0:03:38.1]} 22. Qe2 {[%clk
0:02:54.5]} 22... Rc8 {[%clk 0:03:25.4]} 23. Nd6 {[%clk 0:02:44.3]} 23... Nxd6
{[%clk 0:03:21.3]} 24. exd6 {[%clk 0:02:42.4]} 24... Nf5 {[%clk 0:03:18.7]} 25.
Qb5 {[%clk 0:02:22.8]} 25... Nxd6 {[%clk 0:03:13.9]} 26. Qb6 {[%clk 0:02:18.7]}
26... Nc4 {[%clk 0:02:59.9]} 27. Bxc4 {[%clk 0:01:42]} 27... Rxc4 {[%clk
0:02:57]} 28. Qxb4 {[%clk 0:01:41.9]} 28... Rxb4 {[%clk 0:02:55.2]} 0-1

[Event "Live Chess"]
[Site "Chess.com"]
[Date "2023.05.21"]
[Round "-"]
[White "BritishIsles"]
[Black "Reggie016"]
[Result "1-0"]
[WhiteElo "2415"]
[BlackElo "1116"]
[TimeControl "300"]
[EndTime "3:42:31 PDT"]
[Termination "BritishIsles won by checkmate"]

1. d4 {[%clk 0:04:56.8]} 1... e6 {[%clk 0:04:58.4]} 2. Nf3 {[%clk 0:04:55.5]}
2... f5 {[%clk 0:04:57.1]} 3. c4 {[%clk 0:04:54]} 3... Bb4+ {[%clk 0:04:55.7]}
4. Nc3 {[%clk 0:04:51.8]} 4... Nf6 {[%clk 0:04:54.9]} 5. Bg5 {[%clk 0:04:50.3]}
5... O-O {[%clk 0:04:53.4]} 6. e3 {[%clk 0:04:48.9]} 6... Qe8 {[%clk 0:04:48.9]}
7. Bxf6 {[%clk 0:04:47.5]} 7... Rxf6 {[%clk 0:04:48]} 8. Qb3 {[%clk 0:04:46.3]}
8... a5 {[%clk 0:04:43.8]} 9. a3 {[%clk 0:04:44.9]} 9... a4 {[%clk 0:04:35.5]}
10. Qc2 {[%clk 0:04:20.3]} 10... Bxc3+ {[%clk 0:04:30.2]} 11. Qxc3 {[%clk
0:04:20.2]} 11... d6 {[%clk 0:04:26.3]} 12. Be2 {[%clk 0:04:16.5]} 12... Nd7
{[%clk 0:04:03.5]} 13. c5 {[%clk 0:04:07.1]} 13... e5 {[%clk 0:03:55.7]} 14.
cxd6 {[%clk 0:04:01.3]} 14... cxd6 {[%clk 0:03:48.1]} 15. O-O {[%clk 0:03:59.4]}
15... Rg6 {[%clk 0:03:32.6]} 16. Rac1 {[%clk 0:03:56.2]} 16... Qd8 {[%clk
0:03:20.3]} 17. dxe5 {[%clk 0:03:52.7]} 17... dxe5 {[%clk 0:03:01.7]} 18. Nxe5
{[%clk 0:03:51.2]} 18... Nxe5 {[%clk 0:02:55.7]} 19. Qxe5 {[%clk 0:03:51.1]}
19... Qg5 {[%clk 0:02:48.4]} 20. Qe8# {[%clk 0:03:47.6]} 1-0

[Event "Live Chess"]
[Site "Chess.com"]
[Date "2023.05.21"]
[Round "-"]
[White "enoughtell"]
[Black "LiamClery2020"]
[Result "0-1"]
[WhiteElo "1107"]
[BlackElo "1994"]
[TimeControl "300"]
[EndTime "3:42:35 PDT"]
[Termination "LiamClery2020 won on time"]

1. e4 {[%clk 0:04:56.6]} 1... Nf6 {[%clk 0:04:59.9]} 2. Nc3 {[%clk 0:04:52.7]}
2... e5 {[%clk 0:04:59]} 3. Nf3 {[%clk 0:04:51.2]} 3... Nc6 {[%clk 0:04:57.6]}
4. Bc4 {[%clk 0:04:46.7]} 4... Nxe4 {[%clk 0:04:55.1]} 5. Nxe4 {[%clk
0:04:39.9]} 5... d5 {[%clk 0:04:54]} 6. d3 {[%clk 0:04:18.2]} 6... dxc4 {[%clk
0:04:50.2]} 7. dxc4 {[%clk 0:04:17.1]} 7... Qxd1+ {[%clk 0:04:49]} 8. Kxd1
{[%clk 0:04:16.1]} 8... Bg4 {[%clk 0:04:48.9]} 9. Be3 {[%clk 0:04:09.7]} 9...
O-O-O+ {[%clk 0:04:48.8]} 10. Ke2 {[%clk 0:04:06.5]} 10... f6 {[%clk 0:04:48.2]}
11. Rhd1 {[%clk 0:04:01.9]} 11... Be6 {[%clk 0:04:46.2]} 12. b3 {[%clk
0:03:59.9]} 12... Be7 {[%clk 0:04:44.3]} 13. Nc3 {[%clk 0:03:48.1]} 13... Bf5
{[%clk 0:04:39.6]} 14. Rac1 {[%clk 0:03:38.8]} 14... Bb4 {[%clk 0:04:34.2]} 15.
Nb5 {[%clk 0:03:29.8]} 15... a6 {[%clk 0:04:31.9]} 16. Nh4 {[%clk 0:03:15]}
16... Be6 {[%clk 0:04:23.8]} 17. a3 {[%clk 0:02:57.7]} 17... axb5 {[%clk
0:04:20.6]} 18. axb4 {[%clk 0:02:56.8]} 18... bxc4 {[%clk 0:04:19.6]} 19. Ra1
{[%clk 0:02:48.7]} 19... Kb8 {[%clk 0:04:15.2]} 20. b5 {[%clk 0:02:45]} 20...
Nd4+ {[%clk 0:04:13.3]} 21. Bxd4 {[%clk 0:02:42.4]} 21... exd4 {[%clk
0:04:13.2]} 22. f4 {[%clk 0:02:19.3]} 22... Bg4+ {[%clk 0:04:10.7]} 23. Ke1
{[%clk 0:02:16]} 23... Bxd1 {[%clk 0:04:09.3]} 24. Kxd1 {[%clk 0:02:15.4]} 24...
d3 {[%clk 0:04:07.8]} 25. Kd2 {[%clk 0:02:13.4]} 25... dxc2+ {[%clk 0:04:07]}
26. Kxc2 {[%clk 0:02:12.8]} 26... cxb3+ {[%clk 0:04:06.8]} 27. Kxb3 {[%clk
0:02:11.9]} 27... Rhe8 {[%clk 0:04:06.7]} 28. Nf5 {[%clk 0:02:08.8]} 28... g6
{[%clk 0:04:05.2]} 29. Nh6 {[%clk 0:02:00.8]} 29... Re4 {[%clk 0:04:03.3]} 30.
f5 {[%clk 0:01:51.8]} 30... gxf5 {[%clk 0:04:00.8]} 31. Nxf5 {[%clk 0:01:50.3]}
31... Re5 {[%clk 0:04:00]} 32. Ng3 {[%clk 0:01:40.1]} 32... Rxb5+ {[%clk
0:03:58.9]} 33. Kc4 {[%clk 0:01:38.6]} 33... Re5 {[%clk 0:03:57.9]} 34. Rf1
{[%clk 0:01:32.4]} 34... Rd6 {[%clk 0:03:56.4]} 35. h3 {[%clk 0:01:27.5]} 35...
Rc6+ {[%clk 0:03:55.1]} 36. Kd4 {[%clk 0:01:25.1]} 36... Kc8 {[%clk 0:03:53]}
37. Ne4 {[%clk 0:01:17.3]} 37... Ree6 {[%clk 0:03:46.7]} 38. Ng3 {[%clk
0:00:55]} 38... b5 {[%clk 0:03:43.2]} 39. Nh5 {[%clk 0:00:53.7]} 39... b4 {[%clk
0:03:41.5]} 40. Ng7 {[%clk 0:00:50.9]} 40... Red6+ {[%clk 0:03:39.5]} 41. Ke4
{[%clk 0:00:48.5]} 41... b3 {[%clk 0:03:39]} 42. Nf5 {[%clk 0:00:46.9]} 42...
Rd2 {[%clk 0:03:35.9]} 43. Ne7+ {[%clk 0:00:45.4]} 43... Kb7 {[%clk 0:03:34.7]}
44. Nxc6 {[%clk 0:00:44.1]} 44... Kxc6 {[%clk 0:03:34.6]} 45. Rb1 {[%clk
0:00:41.1]} 45... Rxg2 {[%clk 0:03:33.3]} 46. Kd3 {[%clk 0:00:40]} 46... Rh2
{[%clk 0:03:31.6]} 47. Rc1+ {[%clk 0:00:34.3]} 47... Kd6 {[%clk 0:03:30.1]} 48.
Kc4 {[%clk 0:00:30.3]} 48... b2 {[%clk 0:03:28.7]} 49. Rb1 {[%clk 0:00:28.1]}
49... f5 {[%clk 0:03:27.8]} 50. Kd3 {[%clk 0:00:20.3]} 50... Rxh3+ {[%clk
0:03:27]} 51. Kd4 {[%clk 0:00:18.8]} 51... Rh2 {[%clk 0:03:26.9]} 52. Kc4 {[%clk
0:00:17.4]} 52... Rf2 {[%clk 0:03:23.7]} 53. Kd4 {[%clk 0:00:16.5]} 53... h5
{[%clk 0:03:22.8]} 54. Ke3 {[%clk 0:00:15.8]} 54... Rc2 {[%clk 0:03:22.2]} 55.
Kd3 {[%clk 0:00:14.3]} 55... Rg2 {[%clk 0:03:21.7]} 56. Ke3 {[%clk 0:00:13.7]}
56... h4 {[%clk 0:03:21.3]} 57. Kf3 {[%clk 0:00:13.1]} 57... h3 {[%clk
0:03:20.8]} 58. Rd1+ {[%clk 0:00:08.9]} 58... Ke6 {[%clk 0:03:19.5]} 59. Re1+
{[%clk 0:00:07.5]} 59... Kf6 {[%clk 0:03:19.1]} 60. Rb1 {[%clk 0:00:05.8]} 60...
c5 {[%clk 0:03:18.5]} 61. Kf4 {[%clk 0:00:04.4]} 61... c4 {[%clk 0:03:17.4]} 62.
Kf3 {[%clk 0:00:03.7]} 62... c3 {[%clk 0:03:16.6]} 63. Kf4 {[%clk 0:00:00.5]}
63... c2 {[%clk 0:03:15.8]} 0-1

[Event "Live Chess"]
[Site "Chess.com"]
[Date "2023.05.21"]
[Round "-"]
[White "SupremeTactician"]
[Black "KeithArkell"]
[Result "0-1"]
[WhiteElo "2216"]
[BlackElo "2500"]
[TimeControl "300"]
[EndTime "3:42:37 PDT"]
[Termination "KeithArkell won by checkmate"]

1. e4 {[%clk 0:04:59.9]} 1... c6 {[%clk 0:04:58.9]} 2. d4 {[%clk 0:04:58]} 2...
d5 {[%clk 0:04:58.1]} 3. Nc3 {[%clk 0:04:57.8]} 3... dxe4 {[%clk 0:04:57.2]} 4.
Nxe4 {[%clk 0:04:57.7]} 4... Nd7 {[%clk 0:04:56.5]} 5. Ng5 {[%clk 0:04:56.6]}
5... Ngf6 {[%clk 0:04:55.6]} 6. Bd3 {[%clk 0:04:55.7]} 6... Nb6 {[%clk
0:04:54.2]} 7. N1f3 {[%clk 0:04:54.5]} 7... Bg4 {[%clk 0:04:52]} 8. c3 {[%clk
0:04:52.7]} 8... Bxf3 {[%clk 0:04:45]} 9. Qxf3 {[%clk 0:04:49]} 9... Qd5 {[%clk
0:04:41.1]} 10. Ne4 {[%clk 0:04:39.9]} 10... Nxe4 {[%clk 0:04:40]} 11. Bxe4
{[%clk 0:04:39.2]} 11... Qd7 {[%clk 0:04:39.2]} 12. O-O {[%clk 0:04:36.2]} 12...
e6 {[%clk 0:04:38.2]} 13. Re1 {[%clk 0:04:35.2]} 13... Be7 {[%clk 0:04:37.2]}
14. a4 {[%clk 0:04:28.6]} 14... Nd5 {[%clk 0:04:36]} 15. Bd2 {[%clk 0:04:25.7]}
15... Nf6 {[%clk 0:04:35.1]} 16. Bc2 {[%clk 0:04:24.6]} 16... O-O {[%clk
0:04:33.6]} 17. Bg5 {[%clk 0:04:23.4]} 17... Nd5 {[%clk 0:04:30.3]} 18. Qh3
{[%clk 0:04:18.4]} 18... g6 {[%clk 0:04:28.9]} 19. Bd2 {[%clk 0:04:09.8]} 19...
Rfe8 {[%clk 0:04:21.6]} 20. a5 {[%clk 0:04:05.3]} 20... b5 {[%clk 0:04:17]} 21.
b4 {[%clk 0:03:59.8]} 21... Bf6 {[%clk 0:04:12.9]} 22. Re4 {[%clk 0:03:45.1]}
22... Qd8 {[%clk 0:04:05.2]} 23. Rae1 {[%clk 0:03:41]} 23... Bg5 {[%clk
0:04:02.4]} 24. f4 {[%clk 0:03:33.7]} 24... Bf6 {[%clk 0:04:00.4]} 25. g4 {[%clk
0:03:26]} 25... Qd7 {[%clk 0:03:59.2]} 26. f5 {[%clk 0:03:22.6]} 26... exf5
{[%clk 0:03:57.6]} 27. gxf5 {[%clk 0:03:22.1]} 27... Rxe4 {[%clk 0:03:56.3]} 28.
Bxe4 {[%clk 0:03:21.6]} 28... Re8 {[%clk 0:03:52]} 29. Qg2 {[%clk 0:03:10.3]}
29... Kg7 {[%clk 0:03:44.8]} 30. fxg6 {[%clk 0:03:08.5]} 30... hxg6 {[%clk
0:03:43.5]} 31. Rf1 {[%clk 0:02:43.7]} 31... a6 {[%clk 0:03:34.7]} 32. Bd3
{[%clk 0:02:41.1]} 32... Nxc3 {[%clk 0:03:21.3]} 33. Bxc3 {[%clk 0:02:32]} 33...
Bxd4+ {[%clk 0:03:20.3]} 34. Bxd4+ {[%clk 0:02:31.5]} 34... Qxd4+ {[%clk
0:03:19.4]} 35. Qf2 {[%clk 0:02:31]} 35... Rd8 {[%clk 0:03:03.7]} 36. Be4 {[%clk
0:02:10.3]} 36... Qxf2+ {[%clk 0:02:02.9]} 37. Rxf2 {[%clk 0:02:07.9]} 37... Rd4
{[%clk 0:02:01.8]} 38. Bxc6 {[%clk 0:02:07.3]} 38... Rxb4 {[%clk 0:02:00.6]} 39.
Bb7 {[%clk 0:02:06.6]} 39... Ra4 {[%clk 0:01:59.3]} 40. Bxa6 {[%clk 0:02:06]}
40... Rxa5 {[%clk 0:01:58.8]} 41. Bb7 {[%clk 0:02:04.9]} 41... b4 {[%clk
0:01:56.7]} 42. Rb2 {[%clk 0:02:01.8]} 42... Rb5 {[%clk 0:01:55]} 43. Bc6 {[%clk
0:01:59.6]} 43... Rb6 {[%clk 0:01:54.1]} 44. Bd5 {[%clk 0:01:59.1]} 44... f5
{[%clk 0:01:53.1]} 45. Kf2 {[%clk 0:01:58]} 45... Kf6 {[%clk 0:01:52.5]} 46. Kf3
{[%clk 0:01:57.3]} 46... Ke5 {[%clk 0:01:52]} 47. Bf7 {[%clk 0:01:56.6]} 47...
g5 {[%clk 0:01:50.9]} 48. Re2+ {[%clk 0:01:55.8]} 48... Kd4 {[%clk 0:01:49.5]}
49. Re6 {[%clk 0:01:33.1]} 49... Rb7 {[%clk 0:01:44.6]} 50. Rf6 {[%clk
0:01:10.5]} 50... Rb5 {[%clk 0:01:33.7]} 51. Rd6+ {[%clk 0:01:05.5]} 51... Ke5
{[%clk 0:01:30.7]} 52. Rd3 {[%clk 0:01:00.1]} 52... g4+ {[%clk 0:01:20.9]} 53.
Kg3 {[%clk 0:00:59]} 53... Rb7 {[%clk 0:01:15.5]} 54. Bb3 {[%clk 0:00:53]} 54...
Rh7 {[%clk 0:01:13.8]} 55. Rd5+ {[%clk 0:00:52.4]} 55... Kf6 {[%clk 0:01:12.1]}
56. Rb5 {[%clk 0:00:48.7]} 56... Rh3+ {[%clk 0:01:10.9]} 57. Kf4 {[%clk
0:00:43.3]} 57... Rf3# {[%clk 0:01:09.7]} 0-1

[Event "Live Chess"]
[Site "Chess.com"]
[Date "2023.05.21"]
[Round "-"]
[White "RoaringKnights"]
[Black "WelshTiger"]
[Result "0-1"]
[WhiteElo "1074"]
[BlackElo "2330"]
[TimeControl "300"]
[EndTime "3:42:59 PDT"]
[Termination "WelshTiger won by checkmate"]

1. d4 {[%clk 0:04:58.4]} 1... d5 {[%clk 0:04:53.5]} 2. Nf3 {[%clk 0:04:57.1]}
2... e6 {[%clk 0:04:53]} 3. Bf4 {[%clk 0:04:54.6]} 3... Bd6 {[%clk 0:04:51.6]}
4. Bg3 {[%clk 0:04:52.3]} 4... Nf6 {[%clk 0:04:50.3]} 5. e3 {[%clk 0:04:50.4]}
5... c5 {[%clk 0:04:49.2]} 6. c3 {[%clk 0:04:48.9]} 6... Nc6 {[%clk 0:04:47.3]}
7. Bd3 {[%clk 0:04:46.6]} 7... Qe7 {[%clk 0:04:46.2]} 8. Nbd2 {[%clk 0:04:42.5]}
8... e5 {[%clk 0:04:43.7]} 9. dxe5 {[%clk 0:04:41.1]} 9... Nxe5 {[%clk
0:04:43.1]} 10. Nxe5 {[%clk 0:04:39.5]} 10... Bxe5 {[%clk 0:04:43]} 11. Bb5+
{[%clk 0:04:36.5]} 11... Bd7 {[%clk 0:04:40.1]} 12. Bd3 {[%clk 0:04:34.7]} 12...
Bxg3 {[%clk 0:04:37.6]} 13. hxg3 {[%clk 0:04:33.4]} 13... h6 {[%clk 0:04:36.1]}
14. Qc2 {[%clk 0:04:31.5]} 14... Bc6 {[%clk 0:04:34.2]} 15. O-O-O {[%clk
0:04:29.5]} 15... b5 {[%clk 0:04:32.7]} 16. Rde1 {[%clk 0:04:26.5]} 16... Ne4
{[%clk 0:04:22.7]} 17. Bxe4 {[%clk 0:04:22.4]} 17... dxe4 {[%clk 0:04:21.3]} 18.
f3 {[%clk 0:04:21.9]} 18... O-O {[%clk 0:04:10.4]} 19. fxe4 {[%clk 0:04:18.8]}
19... c4 {[%clk 0:04:07.1]} 20. g4 {[%clk 0:04:09.8]} 20... Rad8 {[%clk
0:04:06]} 21. g5 {[%clk 0:04:03.1]} 21... Qxg5 {[%clk 0:04:04.3]} 22. Nf3 {[%clk
0:03:59.4]} 22... Qe7 {[%clk 0:03:57.1]} 23. e5 {[%clk 0:03:52.3]} 23... Rd3
{[%clk 0:03:52.5]} 24. Re2 {[%clk 0:03:45.6]} 24... Bxf3 {[%clk 0:03:46.6]} 25.
gxf3 {[%clk 0:03:43.8]} 25... Qxe5 {[%clk 0:03:46.3]} 26. f4 {[%clk 0:03:42.9]}
26... Qe4 {[%clk 0:03:44.9]} 27. Rd1 {[%clk 0:03:37.9]} 27... Rfd8 {[%clk
0:03:43.2]} 28. Red2 {[%clk 0:03:31.7]} 28... Qxe3 {[%clk 0:03:38]} 29. f5
{[%clk 0:03:21.7]} 29... h5 {[%clk 0:03:25.8]} 30. f6 {[%clk 0:03:18.8]} 30...
h4 {[%clk 0:03:22.1]} 31. Kb1 {[%clk 0:03:14]} 31... Rxd2 {[%clk 0:03:18.8]} 32.
Rxd2 {[%clk 0:03:13.4]} 32... Qxd2 {[%clk 0:03:12.6]} 33. Qxd2 {[%clk
0:03:09.1]} 33... Rxd2 {[%clk 0:03:10.7]} 34. fxg7 {[%clk 0:03:08.3]} 34... h3
{[%clk 0:03:09.2]} 35. Kc1 {[%clk 0:03:07.5]} 35... Rg2 {[%clk 0:03:08.8]} 36.
Kd1 {[%clk 0:03:06.7]} 36... h2 {[%clk 0:03:08.4]} 37. Ke1 {[%clk 0:03:06]}
37... h1=Q# {[%clk 0:03:08.1]} 0-1

[Event "Live Chess"]
[Site "Chess.com"]
[Date "2023.05.21"]
[Round "-"]
[White "ItsNot_Jasper"]
[Black "Missedidea"]
[Result "0-1"]
[WhiteElo "1375"]
[BlackElo "1836"]
[TimeControl "300"]
[EndTime "3:43:14 PDT"]
[Termination "Missedidea won by resignation"]

1. d4 {[%clk 0:04:58.6]} 1... Nf6 {[%clk 0:04:58.2]} 2. c4 {[%clk 0:04:57.5]}
2... g6 {[%clk 0:04:56.5]} 3. Nc3 {[%clk 0:04:56.3]} 3... Bg7 {[%clk 0:04:55.4]}
4. e4 {[%clk 0:04:55.4]} 4... d6 {[%clk 0:04:54]} 5. Nf3 {[%clk 0:04:54.1]} 5...
O-O {[%clk 0:04:52.4]} 6. Be2 {[%clk 0:04:53.3]} 6... e5 {[%clk 0:04:50.4]} 7.
d5 {[%clk 0:04:52]} 7... a5 {[%clk 0:04:48.3]} 8. Bg5 {[%clk 0:04:50.3]} 8... h6
{[%clk 0:04:46.2]} 9. Be3 {[%clk 0:04:48.8]} 9... Na6 {[%clk 0:04:42.5]} 10. a3
{[%clk 0:04:46.8]} 10... Ng4 {[%clk 0:04:37.2]} 11. Qd2 {[%clk 0:04:41]} 11...
Nxe3 {[%clk 0:04:33.1]} 12. Qxe3 {[%clk 0:04:40.9]} 12... Nc5 {[%clk 0:04:31.7]}
13. O-O {[%clk 0:04:35.7]} 13... Nb3 {[%clk 0:04:21]} 14. Rad1 {[%clk
0:04:30.4]} 14... f5 {[%clk 0:04:19.7]} 15. exf5 {[%clk 0:04:26.6]} 15... gxf5
{[%clk 0:04:17.9]} 16. Nb5 {[%clk 0:04:26]} 16... Nc5 {[%clk 0:04:12.2]} 17. b4
{[%clk 0:04:24.9]} 17... f4 {[%clk 0:04:03.9]} 18. Qc3 {[%clk 0:04:19.6]} 18...
e4 {[%clk 0:03:59]} 19. Nfd4 {[%clk 0:04:18.9]} 19... axb4 {[%clk 0:03:50.2]}
20. axb4 {[%clk 0:04:17.5]} 20... Nd7 {[%clk 0:03:41.7]} 21. f3 {[%clk
0:04:15.1]} 21... e3 {[%clk 0:03:32.2]} 22. Qc1 {[%clk 0:04:13.5]} 22... Ne5
{[%clk 0:03:29.5]} 23. Bd3 {[%clk 0:03:59.4]} 23... c5 {[%clk 0:03:15.6]} 24.
bxc5 {[%clk 0:03:43.8]} 24... dxc5 {[%clk 0:03:13.4]} 25. Ne6 {[%clk 0:03:40.7]}
25... Bxe6 {[%clk 0:03:10.8]} 26. dxe6 {[%clk 0:03:40.6]} 26... Qe7 {[%clk
0:03:05.5]} 27. Be4 {[%clk 0:03:39.5]} 27... Kh8 {[%clk 0:02:59.7]} 28. Bd5
{[%clk 0:03:22.3]} 28... e2 {[%clk 0:02:57.2]} 0-1